bitfinex-derivatives/quotes_BNBF0:USTF0_20241225
["timestamp","ask_amount","ask_price","bid_price","bid_amount"]
[1735123583238,0.25893864,710.91,709.12,0.28203971]
[1735123583433,0.25893864,710.9,709.12,0.28203971]
[1735123583642,0.25893864,710.89,709.12,0.28203971]
[1735123583840,0.25893864,710.88,709.12,0.28203971]
[1735123584087,0.25893864,710.87,709.12,0.28203971]
[1735123584236,0.25893864,710.86,709.12,0.28203971]
[1735123584535,0.25893864,710.85,709.12,0.28203971]
[1735123584840,0.25893864,710.84,709.12,0.28203971]
[1735123585049,0.25893864,710.83,709.12,0.28203971]
[1735123585238,0.25893864,710.82,709.12,0.28203971]
[1735123585435,0.25893864,710.81,709.12,0.28203971]
[1735123585635,1.167,711.03,709.12,0.28203971]
[1735123585636,0.25893864,710.8,709.12,0.28203971]
[1735123585839,0.25893864,710.79,709.12,0.28203971]
[1735123586035,0.25893864,711.02,709.12,0.28203971]
[1735123586236,0.25893864,711.01,709.12,0.28203971]
[1735123586435,0.25893864,711.0,709.12,0.28203971]
[1735123586634,0.25893864,710.99,709.12,0.28203971]
[1735123586841,0.25893864,710.98,709.12,0.28203971]
[1735123587143,1.167,711.03,709.12,0.28203971]
[1735123587144,0.25893864,710.97,709.12,0.28203971]
[1735123587341,1.167,711.03,709.12,0.28203971]
[1735123587342,0.25893864,710.96,709.12,0.28203971]
[1735123587543,0.25893864,710.95,709.12,0.28203971]
[1735123587743,0.25893864,710.94,709.12,0.28203971]
[1735123588044,0.25893864,710.93,709.12,0.28203971]
[1735123588243,0.25893864,710.92,709.12,0.28203971]
[1735123588445,1.167,711.03,709.12,0.28203971]
[1735123588446,0.25893864,710.91,709.12,0.28203971]
[1735123588644,0.25893864,710.9,709.12,0.28203971]
[1735123588838,0.25893864,710.89,709.12,0.28203971]
[1735123589041,0.25893864,710.88,709.12,0.28203971]
[1735123589241,0.25893864,710.87,709.12,0.28203971]
[1735123589439,0.25893864,710.86,709.12,0.28203971]
[1735123589638,0.25893864,710.85,709.12,0.28203971]
[1735123589839,0.25893864,710.84,709.12,0.28203971]
[1735123590039,0.25893864,710.83,709.12,0.28203971]
[1735123590246,0.25893864,710.82,709.12,0.28203971]
[1735123590446,0.25893864,710.81,709.12,0.28203971]
[1735123590644,0.25893864,710.8,709.12,0.28203971]
[1735123590845,0.25893864,710.79,709.12,0.28203971]
[1735123591147,1.167,711.03,709.12,0.28203971]
[1735123591347,0.25898572,711.02,709.12,0.28203971]
[1735123594642,1.167,711.03,709.12,0.28203971]
[1735123594845,0.25895875,711.02,709.12,0.28203971]
[1735123596644,0.25895834,711.01,709.12,0.28203971]
[1735123596850,0.25895834,711.02,709.12,0.28203971]
[1735123597051,0.25895834,711.01,709.12,0.28203971]
[1735123597350,0.25895834,711.0,709.12,0.28203971]
[1735123597551,0.25895834,710.99,709.12,0.28203971]
[1735123597743,0.25895834,710.98,709.12,0.28203971]
[1735123597946,0.25895834,710.97,709.12,0.28203971]
[1735123598147,0.25895834,710.96,709.12,0.28203971]
[1735123598349,0.25895834,710.95,709.12,0.28203971]
[1735123598543,0.25895834,710.94,709.12,0.28203971]
[1735123598749,0.25895834,710.93,709.12,0.28203971]
[1735123598944,0.25895834,710.92,709.12,0.28203971]
[1735123599350,1.104,710.93,709.12,0.28203971]
[1735123599549,0.25895918,710.92,709.12,0.28203971]
[1735123599946,0.25895918,710.92,709.32,1.03826242]
[1735123600853,0.25895918,710.92,709.12,0.28203971]
[1735123602351,1.04295918,710.92,709.12,0.28203971]
[1735123602553,0.25895918,710.91,709.12,0.28203971]
[1735123602853,0.28133747,710.89,709.12,0.28203971]
[1735123603056,0.25895918,710.88,709.13,1.03826242]
[1735123603255,0.25895918,710.87,709.13,1.03826242]
[1735123603454,0.25895918,710.86,709.13,1.03826242]
[1735123603649,0.25895918,710.85,709.13,1.03826242]
[1735123603849,0.28133747,710.89,709.13,1.03826242]
[1735123603850,0.25895918,710.84,709.13,1.03826242]
[1735123604054,0.25895918,710.83,709.13,1.03826242]
[1735123604254,1.05076328,710.77,709.12,0.28203971]
[1735123604450,0.25895918,710.76,709.12,0.28203971]
[1735123604649,0.25895918,710.75,709.12,0.28203971]
[1735123604852,0.25895918,710.74,709.12,0.28203971]
[1735123605051,0.25895918,710.73,709.12,0.28203971]
[1735123605253,0.25895918,710.72,709.12,0.28203971]
[1735123605454,0.25895918,710.71,709.12,0.28203971]
[1735123605659,0.25895918,710.7,709.12,0.28203971]
[1735123605955,0.54037583,710.69,709.12,0.28203971]
[1735123606154,0.28142457,710.67,709.12,0.28203971]
[1735123606356,0.25895918,710.66,709.12,0.28203971]
[1735123606553,0.25895918,710.65,709.12,0.28203971]
[1735123606850,0.28142457,710.67,709.12,0.28203971]
[1735123606851,0.25895918,710.64,709.12,0.28203971]
[1735123607051,0.25895918,710.63,709.12,0.28203971]
[1735123607254,0.25895918,710.62,709.12,0.28203971]
[1735123607557,0.25895918,710.61,709.09,1.03826242]
[1735123607751,0.25907072,710.6,709.09,1.03826242]
[1735123607950,0.25907072,710.59,709.09,1.03826242]
[1735123608152,0.25907072,710.58,709.02,1.03826242]
[1735123608357,0.25907072,710.57,709.02,1.03826242]
[1735123608554,0.25907072,710.56,709.02,1.03826242]
[1735123608751,0.25907072,710.55,709.02,1.03826242]
[1735123608954,0.25907072,710.54,709.02,1.03826242]
[1735123609154,0.25907072,710.53,708.99,1.03826242]
[1735123609357,0.28142457,710.67,708.99,1.03826242]
[1735123609358,0.25907072,710.52,708.99,1.03826242]
[1735123609657,0.25907072,710.51,708.99,1.03826242]
[1735123609853,0.25907072,710.5,708.99,1.03826242]
[1735123610058,0.25907072,710.49,708.93,1.03826242]
[1735123610250,0.28142457,710.67,708.93,1.03826242]
[1735123610251,0.25907072,710.66,708.93,1.03826242]
[1735123610454,0.25907643,710.65,708.93,1.03826242]
[1735123610756,0.28144041,710.63,708.93,1.03826242]
[1735123610955,0.25907643,710.62,708.93,1.03826242]
[1735123611156,0.25907643,710.61,708.94,1.03826242]
[1735123611355,0.25907643,710.6,708.94,1.03826242]
[1735123611557,0.25907643,710.59,708.94,1.03826242]
[1735123611858,0.25907643,710.58,708.94,1.03826242]
[1735123612156,0.25907643,710.57,708.94,1.03826242]
[1735123612352,0.25907643,710.56,708.94,1.03826242]
[1735123612551,0.25907643,710.55,708.94,1.03826242]
[1735123612756,0.25907643,710.54,708.94,1.03826242]
[1735123612956,0.25907643,710.53,708.94,1.03826242]
[1735123613259,0.25904972,710.52,708.94,1.03826242]
[1735123613557,0.25904972,710.51,708.94,1.03826242]
[1735123613757,0.25904972,710.5,708.91,1.03826242]
[1735123613957,0.25904972,710.49,708.91,1.03826242]
[1735123614156,0.25904972,710.48,708.91,1.03826242]
[1735123614352,0.25904972,710.47,708.91,1.03826242]
[1735123614558,0.25904972,710.46,708.86,1.03826242]
[1735123614756,0.25904972,710.45,708.86,1.03826242]
[1735123614952,0.25904972,710.44,708.86,1.03826242]
[1735123615156,0.25904972,710.43,708.86,1.03826242]
[1735123615358,0.25904972,710.42,708.86,1.03826242]
[1735123615559,0.28152756,710.41,708.86,1.03826242]
[1735123616357,0.28152756,710.41,708.87,1.03826242]
[1735123617354,0.25905682,710.4,708.88,1.03826242]
[1735123617559,0.28152756,710.41,708.88,1.03826242]
[1735123618054,0.25904877,710.4,708.88,1.03826242]
[1735123618559,0.25904877,710.4,708.17,1.24591491]
[1735123618560,0.28152756,710.41,708.93,1.03826242]
[1735123619562,0.28152756,710.41,708.92,1.03826242]
[1735123620459,0.28152756,710.41,708.93,1.03826242]
[1735123621361,0.25905245,710.4,708.93,1.03826242]
[1735123621566,0.28153549,710.39,708.95,1.03826242]
[1735123621759,0.25905245,710.38,708.95,1.03826242]
[1735123622065,0.28154342,710.37,708.95,1.03826242]
[1735123622262,0.25905245,710.36,708.95,1.03826242]
[1735123622659,0.25905245,710.36,709.02,1.03826242]
[1735123623461,0.28154342,710.37,709.02,1.03826242]
[1735123623661,0.25907729,710.36,708.95,1.03826242]
[1735123624563,0.25907729,710.36,709.0,1.03826242]
[1735123625362,0.25907729,710.36,708.66,1.03826242]
[1735123625363,0.25907729,710.36,708.98,1.03826242]
[1735123625958,0.25906496,710.35,708.98,1.03826242]
[1735123626164,0.25906496,710.34,708.98,1.03826242]
[1735123626365,0.25906496,710.33,708.96,1.03826242]
[1735123626663,0.25906496,710.32,708.96,1.03826242]
[1735123626857,0.28154342,710.37,708.96,1.03826242]
[1735123627061,0.25907097,710.36,708.95,1.03826242]
[1735123627967,0.25907097,710.36,708.96,1.03826242]
[1735123628768,0.28154342,710.37,709.0,1.03826242]
[1735123628963,0.25906248,710.36,709.0,1.03826242]
[1735123629970,0.25906248,710.36,709.04,1.03826242]
[1735123631270,0.25906248,710.36,708.34,2.11978578]
[1735123631271,0.25906248,710.36,708.98,1.03826242]
[1735123631471,1.101,710.36,708.98,1.03826242]
[1735123631971,1.101,710.36,709.02,1.03826242]
[1735123633274,1.101,710.36,709.06,1.03826242]
[1735123634269,1.101,710.36,709.08,1.03826242]
[1735123635577,1.101,710.36,709.13,1.03826242]
[1735123636771,1.101,710.36,709.23,1.03826242]
[1735123637376,2.207,710.36,709.23,1.03826242]
[1735123637574,2.207,710.36,708.45,1.24591491]
[1735123637575,2.207,710.36,709.2,1.03826242]
[1735123638778,2.207,710.36,709.21,0.28200391]
[1735123639577,2.207,710.36,709.47,1.03826242]
[1735123640575,2.207,710.36,709.21,0.28200391]
[1735123640576,2.207,710.36,709.45,1.03826242]
[1735123641779,2.207,710.36,709.46,1.03826242]
[1735123642879,2.207,710.36,709.43,1.03826242]
[1735123643978,2.207,710.36,709.52,1.03826242]
[1735123644975,2.207,710.36,709.39,1.03826242]
[1735123645874,2.207,710.36,709.21,0.28200391]
[1735123645875,2.207,710.36,709.38,1.03826242]
[1735123646478,2.207,710.36,709.31,1.03826242]
[1735123647478,2.207,710.36,709.21,0.28200391]
[1735123674100,2.207,710.36,709.32,1.03826242]
[1735123675000,2.207,710.36,709.31,1.03826242]
[1735123676094,2.207,710.36,709.33,1.03826242]
[1735123677098,2.207,710.36,709.25,1.03826242]
[1735123678101,2.207,710.36,709.3,1.03826242]
[1735123679002,2.207,710.36,709.21,0.28200391]
[1735123679003,2.207,710.36,709.33,1.03826242]
[1735123679904,2.207,710.36,709.35,1.03826242]
[1735123682207,2.207,710.36,709.38,1.03826242]
[1735123682903,2.207,710.36,709.43,1.03826242]
[1735123684011,2.207,710.36,709.45,1.03826242]
[1735123685108,2.207,710.36,709.34,1.03826242]
[1735123686504,2.207,710.36,709.35,1.03826242]
[1735123687509,2.207,710.36,709.39,1.03826242]
[1735123688706,2.207,710.36,709.43,1.03826242]
[1735123689810,2.207,710.36,709.5,1.03826242]
[1735123691206,2.207,710.36,709.27,1.03826242]
[1735123692011,2.207,710.36,709.21,0.28200391]
[1735123692012,2.207,710.36,709.52,1.03826242]
[1735123694106,2.207,710.36,709.51,1.03826242]
[1735123695112,2.207,710.36,709.57,1.03826242]
[1735123695807,2.207,710.36,709.54,1.03826242]
[1735123697707,2.207,710.36,709.51,1.03826242]
[1735123700215,2.207,710.36,709.49,1.03826242]
[1735123701015,2.207,710.36,709.22,1.03826242]
[1735123701016,2.207,710.36,709.62,1.03826242]
[1735123702013,2.207,710.36,709.42,1.03826242]
[1735123702014,2.207,710.36,709.64,1.03826242]
[1735123703219,2.207,710.36,709.68,1.03826242]
[1735123704313,2.207,710.36,709.61,1.03826242]
[1735123705417,2.207,710.36,709.65,1.03826242]
[1735123706418,2.207,710.36,709.61,1.03826242]
[1735123707117,2.207,710.36,709.6,1.03826242]
[1735123707818,2.207,710.36,709.61,1.03826242]
[1735123708718,2.207,710.36,709.63,1.03826242]
[1735123709617,2.207,710.36,709.62,1.03826242]
[1735123711013,2.207,710.36,709.65,1.03826242]
[1735123712113,2.207,710.36,709.22,0.7639086]
[1735123712114,2.207,710.36,709.62,1.03826242]
[1735123714515,2.207,710.36,709.6,1.03826242]
[1735123715319,2.207,710.36,709.61,1.03826242]
[1735123716622,2.207,710.36,709.62,1.03826242]
[1735123717918,2.207,710.36,709.66,1.03826242]
[1735123718719,1e-08,710.36,709.66,1.03826242]
[1735123719023,1e-08,710.36,709.22,1.80217102]
[1735123719024,1e-08,710.36,709.76,1.03826242]
[1735123719917,0.81500001,710.36,709.76,1.03826242]
[1735123720127,0.81500001,710.36,709.85,1.03826242]
[1735123722624,0.81500001,710.36,709.82,1.03826242]
[1735123723423,0.81500001,710.36,709.83,1.03826242]
[1735123724622,0.81500001,710.36,709.76,1.03826242]
[1735123725727,0.81500001,710.36,709.74,1.03826242]
[1735123726825,0.81500001,710.36,709.67,1.03826242]
[1735123727821,0.81500001,710.36,709.66,1.03826242]
[1735123729029,0.81500001,710.36,709.29,1.03826242]
[1735123729030,0.81500001,710.36,709.74,1.03826242]
[1735123729723,0.81500001,710.36,709.69,1.03826242]
[1735123730724,0.81500001,710.36,709.71,1.03826242]
[1735123731828,0.81500001,710.36,709.61,1.03826242]
[1735123732924,0.81500001,710.36,709.7,1.03826242]
[1735123734031,0.81500001,710.36,709.74,1.03826242]
[1735123735231,0.81500001,710.36,709.22,0.7639086]
[1735123735232,0.81500001,710.36,709.76,1.03826242]
[1735123738127,0.81500001,710.36,709.8,1.03826242]
[1735123739332,0.81500001,710.36,709.73,1.03826242]
[1735123740629,0.81500001,710.36,709.74,1.03826242]
[1735123741829,0.81500001,710.36,709.87,1.03826242]
[1735123742328,0.81500001,710.36,709.83,1.03826242]
[1735123743134,1.05076328,711.78,709.83,1.03826242]
[1735123743328,0.25869071,711.77,709.83,1.03826242]
[1735123743528,0.25869071,711.77,709.79,1.03826242]
[1735123743829,0.25869071,711.76,709.79,1.03826242]
[1735123744033,0.25869071,711.75,709.79,1.03826242]
[1735123744233,0.25869071,711.74,709.79,1.03826242]
[1735123744427,0.25869071,711.74,709.96,1.03826242]
[1735123744627,1.117,711.75,709.96,1.03826242]
[1735123744828,0.25866357,711.74,709.96,1.03826242]
[1735123745834,0.25866357,711.74,709.93,1.03826242]
[1735123746438,0.28100938,711.72,709.93,1.03826242]
[1735123746633,0.25866357,711.71,709.93,1.03826242]
[1735123746829,0.25866357,711.71,709.95,1.03826242]
[1735123747033,0.28100938,711.72,709.95,1.03826242]
[1735123747334,0.25868239,711.71,709.95,1.03826242]
[1735123747835,0.25868239,711.71,709.82,1.03826242]
[1735123749335,0.28100938,711.72,709.82,1.03826242]
[1735123749537,0.25868942,711.71,709.82,1.03826242]
[1735123750438,0.25868942,711.71,709.89,1.03826242]
[1735123751240,0.25868942,711.71,709.9,1.03826242]
[1735123752133,0.25873416,711.7,709.88,1.03826242]
[1735123752337,0.25873416,711.69,709.88,1.03826242]
[1735123752536,0.25873416,711.68,709.88,1.03826242]
[1735123752735,0.25873416,711.67,709.88,1.03826242]
[1735123752935,0.25874623,711.66,709.88,1.03826242]
[1735123753142,0.25874623,711.65,709.88,1.03826242]
[1735123753343,0.25874623,711.64,709.81,1.03826242]
[1735123753542,0.25874623,711.63,709.81,1.03826242]
[1735123753837,0.25874623,711.62,709.81,1.03826242]
[1735123754043,0.25874623,711.61,709.81,1.03826242]
[1735123754344,1.05076328,711.58,709.79,1.03826242]
[1735123754543,0.25874623,711.57,709.79,1.03826242]
[1735123754738,1.05076328,711.58,709.79,1.03826242]
[1735123754945,0.25877168,711.56,709.79,1.03826242]
[1735123755144,1.05076328,711.58,709.79,1.03826242]
[1735123755541,1.05076328,711.59,709.8,1.03826242]
[1735123756343,0.25876759,711.58,709.8,1.03826242]
[1735123756746,0.25876759,711.58,709.81,1.03826242]
[1735123757040,1.05076328,711.6,709.81,1.03826242]
[1735123757041,0.25876759,711.57,709.81,1.03826242]
[1735123757240,0.25876759,711.56,709.81,1.03826242]
[1735123757442,0.25876759,711.55,709.81,1.03826242]
[1735123757638,1.05076328,711.6,709.81,1.03826242]
[1735123757838,1.05076328,711.58,709.78,1.03826242]
[1735123758045,0.25877938,711.57,709.78,1.03826242]
[1735123758241,0.25877938,711.56,709.78,1.03826242]
[1735123758445,1.05076328,711.58,709.78,1.03826242]
[1735123758646,0.2587638,711.57,709.78,1.03826242]
[1735123758841,0.2587638,711.56,709.78,1.03826242]
[1735123759047,0.2587638,711.55,709.78,1.03826242]
[1735123759447,0.2587638,711.54,709.78,1.03826242]
[1735123759644,0.2587638,711.53,709.78,1.03826242]
[1735123759845,0.2587638,711.52,709.78,1.03826242]
[1735123760043,0.2587638,711.51,709.78,1.03826242]
[1735123760247,0.2587638,711.5,709.78,1.03826242]
[1735123760447,0.2587599,711.49,709.78,1.03826242]
[1735123760646,0.2587599,711.48,709.83,1.03826242]
[1735123760857,0.2587599,711.47,709.83,1.03826242]
[1735123761050,0.2587599,711.46,709.83,1.03826242]
[1735123761247,0.25876883,711.45,709.83,1.03826242]
[1735123761443,0.25876883,711.44,709.84,1.03826242]
[1735123761648,0.25876883,711.43,709.84,1.03826242]
[1735123761949,0.25876883,711.42,709.84,1.03826242]
[1735123762150,0.25876883,711.41,709.5,1.03826242]
[1735123762450,0.25876883,711.4,709.5,1.03826242]
[1735123762749,0.25876883,711.39,709.5,1.03826242]
[1735123762946,0.25876883,711.38,709.5,1.03826242]
[1735123763147,0.25876883,711.37,709.47,1.03826242]
[1735123763449,0.25878967,711.36,709.47,1.03826242]
[1735123763749,0.25878732,711.35,709.47,1.03826242]
[1735123763951,0.25878732,711.34,709.47,1.03826242]
[1735123764149,0.25878732,711.33,709.43,1.03826242]
[1735123764344,0.25878732,711.32,709.43,1.03826242]
[1735123764548,0.25878732,711.31,709.43,1.03826242]
[1735123764748,0.25878732,711.3,709.43,1.03826242]
[1735123765048,0.25878732,711.29,709.43,1.03826242]
[1735123765349,0.25878732,711.29,709.06,1.03826242]
[1735123765350,0.25878732,711.28,709.53,1.03826242]
[1735123765550,0.25878732,711.27,709.53,1.03826242]
[1735123765751,0.25878732,711.26,709.53,1.03826242]
[1735123766046,0.25878721,711.25,709.53,1.03826242]
[1735123766253,0.25878721,711.24,709.52,1.03826242]
[1735123766551,0.25878721,711.23,709.52,1.03826242]
[1735123766753,0.25878721,711.22,709.52,1.03826242]
[1735123766952,0.25878721,711.21,709.55,1.03826242]
[1735123767153,0.25878721,711.2,709.55,1.03826242]
[1735123767452,0.25878721,711.19,709.55,1.03826242]
[1735123767645,0.25878721,711.18,709.55,1.03826242]
[1735123767847,0.25878721,711.17,709.55,1.03826242]
[1735123768050,1.085,711.25,709.56,1.03826242]
[1735123768352,0.25878491,711.24,709.56,1.03826242]
[1735123768553,0.28120298,711.23,709.56,1.03826242]
[1735123768754,0.25879885,711.22,709.56,1.03826242]
[1735123768948,0.25879885,711.22,709.6,1.03826242]
[1735123769856,0.28121484,711.2,709.6,1.03826242]
[1735123770051,0.25879885,711.19,709.52,1.03826242]
[1735123770256,0.28122671,711.17,709.52,1.03826242]
[1735123770657,0.25881496,711.16,709.52,1.03826242]
[1735123770860,0.28123857,711.14,709.52,1.03826242]
[1735123771060,0.28123857,711.14,709.5,1.03826242]
[1735123771560,0.25881598,711.13,709.5,1.03826242]
[1735123772661,0.25881598,711.13,709.48,1.03826242]
[1735123773855,0.25881598,711.13,709.53,1.03826242]
[1735123774256,0.28123857,711.14,709.53,1.03826242]
[1735123774559,0.25882832,711.13,709.53,1.03826242]
[1735123774961,0.25882832,711.13,709.52,1.03826242]
[1735123776264,0.25882832,711.13,709.44,1.03826242]
[1735123777069,0.25882942,711.12,709.44,1.03826242]
[1735123777366,0.28123857,711.14,709.21,0.28200391]
[1735123777367,0.25882942,711.11,709.49,1.03826242]
[1735123777560,0.25882942,711.1,709.49,1.03826242]
[1735123777761,0.25882942,711.09,709.49,1.03826242]
[1735123778063,0.25882127,711.08,709.49,1.03826242]
[1735123778263,0.25882127,711.07,709.49,1.03826242]
[1735123778464,0.25882127,711.06,709.49,1.03826242]
[1735123778661,0.28127812,711.04,709.51,1.03826242]
[1735123778860,0.25882127,711.03,709.51,1.03826242]
[1735123779063,0.28128603,711.02,709.51,1.03826242]
[1735123779263,0.25882127,711.01,709.51,1.03826242]
[1735123779665,0.28129395,711.0,709.51,1.03826242]
[1735123779865,0.25882127,710.99,709.51,1.03826242]
[1735123780061,1.085,711.25,709.51,1.03826242]
[1735123780062,0.28130186,710.98,709.51,1.03826242]
[1735123780864,0.28130186,710.98,709.4,1.03826242]
[1735123781970,0.28130186,710.98,709.21,0.28200391]
[1735123781971,0.28130186,710.98,709.44,1.03826242]
[1735123782871,0.28130186,710.98,709.49,1.03826242]
[1735123784171,0.28130186,710.98,709.54,1.03826242]
[1735123785171,0.28130186,710.98,709.55,1.03826242]
[1735123785967,0.28130186,710.98,709.61,1.03826242]
[1735123786369,0.25884012,710.97,709.61,1.03826242]
[1735123786569,0.861,710.97,709.61,1.03826242]
[1735123786971,0.25884264,710.96,709.71,1.03826242]
[1735123787566,0.25884079,710.95,709.71,1.03826242]
[1735123787772,0.25884079,710.94,709.71,1.03826242]
[1735123787974,0.25884079,710.93,709.73,1.03826242]
[1735123788171,0.25884079,710.92,709.73,1.03826242]
[1735123788367,0.25884704,710.91,709.73,1.03826242]
[1735123788568,0.25884704,710.9,709.73,1.03826242]
[1735123788872,0.25884704,710.89,709.75,1.03826242]
[1735123789175,0.25884704,710.88,709.75,1.03826242]
[1735123789470,0.25884704,710.87,709.75,1.03826242]
[1735123789672,1.069,710.96,709.75,1.03826242]
[1735123789673,0.25884704,710.86,709.75,1.03826242]
[1735123789873,0.25884704,710.85,709.75,1.03826242]
[1735123790174,0.25884704,710.84,709.75,1.03826242]
[1735123790375,0.25884704,710.83,709.68,1.03826242]
[1735123790575,0.25884704,710.82,709.68,1.03826242]
[1735123790774,0.25884704,710.81,709.68,1.03826242]
[1735123790970,0.25884704,710.95,709.68,1.03826242]
[1735123791174,0.25884704,710.94,709.68,1.03826242]
[1735123791376,0.2813256,710.92,709.68,1.03826242]
[1735123791577,0.25884704,710.91,709.58,1.03826242]
[1735123792374,0.25884704,710.91,709.56,1.03826242]
[1735123793578,0.25884704,710.91,709.53,1.03826242]
[1735123793770,0.25890026,710.9,709.53,1.03826242]
[1735123793971,0.25890026,710.89,709.53,1.03826242]
[1735123794171,0.25890026,710.88,709.53,1.03826242]
[1735123794373,0.25890026,710.87,709.53,1.03826242]
[1735123794573,0.25890279,710.86,709.53,1.03826242]
[1735123794779,0.25890279,710.85,709.52,1.03826242]
[1735123794974,0.25890279,710.84,709.52,1.03826242]
[1735123795179,0.25890279,710.83,709.52,1.03826242]
[1735123795477,0.2813256,710.92,709.52,1.03826242]
[1735123795882,0.2813256,710.92,709.54,1.03826242]
[1735123796778,0.2813256,710.92,709.52,1.03826242]
[1735123797777,0.2813256,710.92,709.6,1.03826242]
[1735123799175,0.2813256,710.92,709.78,1.03826242]
[1735123799979,0.2813256,710.92,709.79,1.03826242]
[1735123802684,0.2813256,710.92,709.82,1.03826242]
[1735123803881,0.2813256,710.92,709.84,1.03826242]
[1735123804983,0.2813256,710.92,710.01,1.03826242]
[1735123805780,1.069,710.96,710.01,1.03826242]
[1735123805981,1.069,710.96,709.97,1.03826242]
[1735123806981,1.069,710.96,709.88,1.03826242]
[1735123808181,1.069,710.96,709.76,1.03826242]
[1735123809281,1.069,710.96,709.78,1.03826242]
[1735123809874,2.125,710.96,709.7,1.03826242]
[1735123810082,2.125,710.96,709.71,0.28180524]
[1735123810981,2.125,710.96,709.72,1.03826242]
[1735123811682,0.25877396,710.95,709.72,1.03826242]
[1735123811877,1.056,710.96,709.72,1.03826242]
[1735123812183,1.056,710.96,709.71,0.28180524]
[1735123812184,1.056,710.96,709.75,1.03826242]
[1735123812981,1.909,710.96,709.75,1.03826242]
[1735123813179,1.909,710.96,709.71,0.28180524]
[1735123821488,0.28131373,710.95,709.71,0.28180524]
[1735123824591,0.2588201,710.94,709.71,0.28180524]
[1735123825690,0.25882653,710.93,709.71,0.28180524]
[1735123825885,0.25882653,710.92,709.71,0.28180524]
[1735123826092,0.25882653,710.91,709.71,0.28180524]
[1735123826394,0.28131373,710.95,709.71,0.28180524]
[1735123826593,0.25882376,710.94,709.71,0.28180524]
[1735123826791,0.25882376,710.93,709.71,0.28180524]
[1735123826986,0.25882376,710.94,709.71,0.28180524]
[1735123827191,0.28131373,710.95,709.71,0.28180524]
[1735123827192,0.25882376,710.93,709.71,0.28180524]
[1735123827386,0.25882376,710.92,709.71,0.28180524]
[1735123827592,0.28131373,710.95,709.71,0.28180524]
[1735123829591,0.25883898,710.94,709.71,0.28180524]
[1735123831792,0.25883898,710.94,709.47,1.03826242]
[1735123832192,0.28131373,710.95,709.39,1.03826242]
[1735123833289,0.25891918,710.94,709.08,1.03826242]
[1735123833491,0.25891918,710.94,709.09,0.28205164]
[1735123833897,0.25892803,710.93,709.09,0.28205164]
[1735123834095,0.25892803,710.92,709.09,0.28205164]
[1735123834294,0.25892803,710.91,709.09,0.28205164]
[1735123834495,0.25892803,710.9,709.14,1.03826242]
[1735123834694,0.25892803,710.94,709.14,1.03826242]
[1735123834893,0.25892803,710.93,709.14,1.03826242]
[1735123835096,0.25892803,710.92,709.14,1.03826242]
[1735123835395,0.25892803,710.91,709.09,0.28205164]
[1735123835591,0.25892803,710.9,709.09,0.28205164]
[1735123835790,0.25892803,710.89,709.09,0.28205164]
[1735123835991,0.25892803,710.88,709.09,0.28205164]
[1735123836192,0.25892803,710.87,709.09,0.28205164]
[1735123836595,1.036,710.88,709.09,0.28205164]
[1735123836798,0.25895581,710.87,709.09,0.28205164]
[1735123837095,1.32295581,710.87,709.09,0.28205164]
[1735123837297,0.25895581,710.86,709.09,0.28205164]
[1735123842102,0.25890095,710.85,709.09,0.28205164]
[1735123842303,1.064,710.87,709.09,0.28205164]
[1735123843303,1.064,710.87,709.24,1.03826242]
[1735123843499,0.25884016,710.86,709.24,1.03826242]
[1735123844200,0.25884016,710.86,709.33,1.03826242]
[1735123844907,1.064,710.87,709.33,1.03826242]
[1735123846304,1.064,710.87,709.35,1.03826242]
[1735123847204,1.064,710.87,709.34,1.03826242]
[1735123848003,1.064,710.87,709.33,1.03826242]
[1735123848906,1.064,710.87,709.09,0.28205164]
[1735123848907,1.064,710.87,709.37,1.03826242]
[1735123850209,1.064,710.87,709.38,1.03826242]
[1735123850404,1.064,710.87,709.39,0.28193236]
[1735123851309,1.064,710.87,709.42,1.03826242]
[1735123852413,0.25883749,710.86,709.42,1.03826242]
[1735123852612,0.25883749,710.86,709.4,1.03826242]
[1735123853112,1.064,710.87,709.4,1.03826242]
[1735123853413,0.25883936,710.86,709.4,1.03826242]
[1735123853808,0.25883936,710.86,709.46,1.03826242]
[1735123854313,0.2813533,710.85,709.46,1.03826242]
[1735123854514,0.25883936,710.84,709.46,1.03826242]
[1735123854714,0.25883936,710.84,709.49,1.03826242]
[1735123855112,0.28136122,710.83,709.49,1.03826242]
[1735123855313,0.25883936,710.82,709.49,1.03826242]
[1735123855511,0.28136122,710.83,709.49,1.03826242]
[1735123857415,0.28136122,710.83,709.44,1.03826242]
[1735123858413,1.05336122,710.83,709.45,1.03826242]
[1735123861015,1.05336122,710.83,709.46,1.03826242]
[1735123862016,1.05336122,710.83,709.43,1.03826242]
[1735123863020,1.05336122,710.83,709.46,1.03826242]
[1735123863428,2.10036122,710.83,709.46,1.03826242]
[1735123864025,2.10036122,710.83,709.47,1.03826242]
[1735123865125,2.10036122,710.83,709.48,1.03826242]